fUSD/lending_fUSD_20240327
["ID","MTS","AMOUNT","RATE_DAILY","PERIOD"]
[320775962,1711553457935,-500.0,0.0005452,120]
[320775963,1711553457945,-500.0,0.0005452,120]
[320775964,1711553457954,-500.0,0.0005452,120]
[320775965,1711553457964,-503.7380011,0.0005452,120]
[320775966,1711553457973,-500.0,0.0005452,120]
[320775967,1711553457983,-500.0,0.0005452,120]
[320775968,1711553457994,-500.0,0.0005452,120]
[320775969,1711553458004,-500.0,0.0005452,120]
[320775970,1711553458014,-500.0,0.0005452,120]
[320775971,1711553458023,-500.0,0.0005452,120]
[320775972,1711553458032,-500.0,0.0005452,120]
[320775973,1711553458042,-500.0,0.0005452,120]
[320775974,1711553458053,-500.0,0.0005452,120]
[320775975,1711553458062,-500.0,0.0005452,120]
[320775976,1711553458075,-500.0,0.0005452,120]
[320775977,1711553458084,-500.0,0.0005452,120]
[320775978,1711553458093,-500.0,0.0005452,120]
[320775979,1711553458103,-500.0,0.0005452,120]
[320775980,1711553458113,-686.01,0.0005452,120]
[320775981,1711553458123,-500.0,0.0005452,120]
[320775982,1711553458133,-500.0,0.0005452,120]
[320775983,1711553458143,-500.0,0.0005452,120]
[320775984,1711553458153,-500.0,0.0005452,120]
[320775985,1711553458162,-500.0,0.0005452,120]
[320775986,1711553458171,-500.0,0.0005452,120]
[320775987,1711553458180,-500.0,0.0005452,120]
[320775988,1711553458190,-500.0,0.0005452,120]
[320775989,1711553458199,-500.0,0.0005452,120]
[320775990,1711553458209,-500.0,0.0005452,120]
[320775991,1711553458218,-500.0,0.0005452,120]
[320775992,1711553458228,-500.0,0.0005452,120]
[320775993,1711553458238,-253.66951504,0.0005452,120]
[320775994,1711553458247,-500.0,0.0005452,120]
[320775995,1711553458258,-151.0,0.0005452,7]
[320775996,1711553458268,-500.0,0.0005452,120]
[320775997,1711553458278,-500.0,0.0005452,120]
[320775998,1711553458289,-500.0,0.0005452,120]
[320775999,1711553458299,-500.0,0.0005452,120]
[320776000,1711553458309,-177.3880492,0.0005452,120]
[320776001,1711553458320,-500.0,0.0005452,120]
[320776002,1711553458331,-500.0,0.0005452,120]
[320776003,1711553458343,-500.0,0.0005452,120]
[320776004,1711553458352,-502.34579145,0.0005452,120]
[320776005,1711553458362,-500.0,0.0005452,120]
[320776006,1711553458371,-1511.11,0.0005452,120]
[320776007,1711553458381,-151.0,0.0005452,120]
[320776008,1711553458391,-500.0,0.0005452,120]
[320776009,1711553458402,-500.0,0.0005452,120]
[320776010,1711553458413,-500.0,0.0005452,120]
[320776011,1711553458426,-500.0,0.0005452,120]
[320776012,1711553458435,-151.0,0.0005452,120]
[320776013,1711553458444,-151.0,0.0005452,120]
[320776014,1711553458454,-500.0,0.0005452,120]
[320776015,1711553458465,-1414.6,0.0005452,120]
[320776016,1711553458477,-500.0,0.0005452,120]
[320776017,1711553458489,-568.0,0.0005452,120]
[320776018,1711553458499,-500.0,0.0005452,120]
[320776019,1711553458509,-1114.02,0.0005452,120]
[320776020,1711553458518,-500.0,0.0005452,120]
[320776021,1711553458527,-500.0,0.0005452,120]
[320776022,1711553458537,-500.0,0.0005452,120]
[320776023,1711553458546,-500.0,0.0005452,120]
[320776024,1711553458555,-242.6153006,0.0005452,120]
[320776025,1711553458565,-500.0,0.0005452,120]
[320776026,1711553458577,-500.0,0.0005452,120]
[320776027,1711553458587,-500.0,0.0005452,120]
[320776028,1711553458596,-500.0,0.0005452,120]
[320776029,1711553458606,-500.0,0.0005452,120]
[320776030,1711553458615,-500.0,0.0005452,120]
[320776031,1711553458626,-500.0,0.0005452,120]
[320776032,1711553458636,-500.0,0.0005452,120]
[320776033,1711553458646,-500.0,0.0005452,120]
[320776034,1711553458656,-500.0,0.0005452,120]
[320776035,1711553458665,-500.0,0.0005452,120]
[320776036,1711553458675,-500.0,0.0005452,120]
[320776037,1711553458685,-151.0,0.0005452,120]
[320776038,1711553458694,-500.0,0.0005452,120]
[320776039,1711553458704,-592.0,0.0005452,120]
[320776040,1711553458713,-500.0,0.0005452,120]
[320776041,1711553458722,-500.0,0.0005452,120]
[320776042,1711553458732,-1726.93,0.0005452,120]
[320776043,1711553458741,-500.0,0.0005452,120]
[320776044,1711553458750,-500.0,0.0005452,120]
[320776045,1711553458760,-500.0,0.0005452,120]
[320776046,1711553458770,-151.0,0.0005452,120]
[320776047,1711553458779,-500.0,0.0005452,120]
[320776048,1711553458788,-500.0,0.0005452,120]
[320776049,1711553458798,-500.0,0.0005452,120]
[320776050,1711553458808,-946.71,0.0005452,120]
[320776051,1711553458820,-151.0,0.0005452,14]
[320776052,1711553458829,-873.96,0.0005452,120]
[320776053,1711553458839,-500.0,0.0005452,120]
[320776054,1711553458849,-509.00214461,0.0005452,120]
[320776055,1711553458859,-500.0,0.0005452,120]
[320776056,1711553458868,-500.0,0.0005452,120]
[320776057,1711553458877,-500.0,0.0005452,120]
[320776058,1711553458886,-500.0,0.0005452,120]
[320776059,1711553458896,-635.02,0.0005452,120]
[320776060,1711553458905,-500.0,0.0005452,120]
[320776061,1711553458914,-151.0,0.0005452,120]
[320776062,1711553458923,-500.0,0.0005452,120]
[320776063,1711553458933,-500.0,0.0005452,120]
[320776064,1711553458942,-151.0,0.0005452,120]
[320776065,1711553458951,-500.0,0.0005452,120]
[320776066,1711553458960,-500.0,0.0005452,120]
[320776067,1711553458970,-500.0,0.0005452,120]
[320776068,1711553458979,-500.0,0.0005452,120]
[320776069,1711553458988,-500.0,0.0005452,120]
[320776070,1711553458997,-854.01,0.0005452,120]
[320776071,1711553459007,-2541.81,0.0005452,120]
[320776072,1711553459016,-575.61,0.0005452,120]
[320776073,1711553459026,-500.0,0.0005452,120]
[320776074,1711553459038,-500.0,0.0005452,120]
[320776075,1711553459047,-500.0,0.0005452,120]
[320776076,1711553459056,-500.0,0.0005452,120]
[320776077,1711553459066,-500.0,0.0005452,120]
[320776078,1711553459078,-2001.34,0.0005452,120]
[320776079,1711553459087,-554.28,0.0005452,120]
[320776080,1711553459169,-1018.81,0.0005452,120]
[320776081,1711553459179,-500.0,0.0005452,120]
[320776082,1711553459189,-216.767078,0.0005452,30]
[320776083,1711553459198,-500.0,0.0005452,120]
[320776084,1711553459207,-261.1082544,0.0005452,120]
[320776085,1711553459216,-500.0,0.0005452,120]
[320776086,1711553459226,-500.0,0.0005452,120]
[320776087,1711553459235,-1637.71,0.0005452,120]
[320776088,1711553459245,-654.52,0.0005452,120]
[320776089,1711553459254,-216.767078,0.0005452,30]
[320776090,1711553459262,-528.03,0.0005452,120]
[320776091,1711553459272,-574.63,0.0005452,120]
[320776092,1711553459282,-1671.89,0.0005452,120]
[320776093,1711553459292,-500.0,0.0005452,120]
[320776094,1711553459302,-700.77,0.0005452,120]
[320776095,1711553459311,-500.0,0.0005452,120]
[320776096,1711553459323,-513.3,0.0005452,120]
[320776097,1711553459332,-684.31,0.0005452,120]
[320776098,1711553459341,-500.0,0.0005452,120]
[320776099,1711553459351,-500.0,0.0005452,120]
[320776100,1711553459360,-500.0,0.0005452,120]
[320776101,1711553459370,-1000.0,0.0005452,120]
[320776102,1711553459379,-500.0,0.0005452,120]
[320776103,1711553459388,-968.08,0.0005452,120]
[320776104,1711553459397,-858.96,0.0005452,120]
[320776105,1711553459406,-500.0,0.0005452,120]
[320776106,1711553459415,-500.0,0.0005452,120]
[320776107,1711553459424,-500.0,0.0005452,120]
[320776108,1711553459434,-500.0,0.0005452,120]
[320776109,1711553459443,-500.0,0.0005452,120]
[320776110,1711553459453,-500.0,0.0005452,120]
[320776111,1711553459462,-2283.82,0.0005452,120]
[320776112,1711553459472,-500.0,0.0005452,120]
[320776113,1711553459481,-1165.63,0.0005452,120]
[320776114,1711553459493,-514.45795615,0.0005452,120]
[320776115,1711553459502,-500.0,0.0005452,120]
[320776116,1711553459511,-500.0,0.0005452,120]
[320776117,1711553459520,-500.0,0.0005452,120]
[320776118,1711553459531,-500.0,0.0005452,120]
[320776119,1711553459540,-500.0,0.0005452,120]
[320776120,1711553459550,-500.0,0.0005452,120]
[320776121,1711553459560,-500.0,0.0005452,120]
[320776122,1711553459573,-876.96,0.0005452,120]
[320776123,1711553459583,-500.0,0.0005452,120]
[320776124,1711553459593,-500.0,0.0005452,120]
[320776125,1711553459602,-150.0,0.0005452,7]
[320776126,1711553459611,-1197.31,0.0005452,120]
[320776127,1711553459621,-500.0,0.0005452,120]
[320776128,1711553459630,-675.93,0.0005452,120]
[320776129,1711553459640,-500.0,0.0005452,120]
[320776130,1711553459649,-500.0,0.0005452,120]
[320776131,1711553459658,-500.0,0.0005452,120]
[320776132,1711553459669,-500.0,0.0005452,120]
[320776133,1711553459678,-500.0,0.0005452,120]
[320776134,1711553459687,-2080.52,0.0005452,120]
[320776135,1711553459696,-500.0,0.0005452,120]
[320776136,1711553459706,-539.72,0.0005452,120]
[320776137,1711553459715,-500.0,0.0005452,120]
[320776138,1711553459728,-500.0,0.0005452,120]
[320776139,1711553459737,-500.0,0.0005452,120]
[320776140,1711553459748,-500.0,0.0005452,120]
[320776141,1711553459757,-522.73,0.0005452,120]
[320776142,1711553459766,-892.37,0.0005452,120]
[320776143,1711553459775,-500.0,0.0005452,120]
[320776144,1711553459784,-500.0,0.0005452,120]
[320776145,1711553459793,-597.52,0.0005452,60]
[320776146,1711553459803,-500.0,0.0005452,120]
[320776147,1711553459812,-510.87227896,0.0005452,120]
[320776148,1711553459825,-682.95,0.0005452,120]
[320776149,1711553459835,-500.0,0.0005452,120]
[320776150,1711553459844,-500.0,0.0005452,120]
[320776151,1711553459854,-528.79,0.0005452,120]
[320776152,1711553459863,-500.0,0.0005452,120]
[320776153,1711553459872,-504.91726217,0.0005452,120]
[320776154,1711553459882,-1140.62,0.0005452,120]
[320776155,1711553459891,-772.97,0.0005452,120]
[320776156,1711553459900,-500.0,0.0005452,120]
[320776157,1711553459910,-500.0,0.0005452,120]
[320776158,1711553459919,-500.0,0.0005452,120]
[320776159,1711553459928,-500.0,0.0005452,120]
[320776160,1711553459937,-500.0,0.0005452,120]
[320776161,1711553459948,-557.54,0.0005452,120]
[320776162,1711553459960,-500.0,0.0005452,120]
[320776163,1711553459969,-547.99,0.0005452,120]
[320776164,1711553459979,-865.02,0.0005452,120]
[320776165,1711553459988,-1075.76,0.0005452,120]
[320776166,1711553459998,-500.0,0.0005452,120]
[320776167,1711553460010,-1899.62,0.0005452,120]
[320776168,1711553460019,-500.0,0.0005452,120]
[320776169,1711553460029,-564.37,0.0005452,120]
[320776170,1711553460038,-1060.57,0.0005452,120]
[320776171,1711553460048,-500.0,0.0005452,120]
[320776172,1711553460058,-756.76,0.0005452,120]
[320776173,1711553460071,-500.0,0.0005452,120]
[320776174,1711553460080,-500.0,0.0005452,120]
[320776175,1711553460090,-500.0,0.0005452,120]
[320776176,1711553460100,-500.0,0.0005452,120]
[320776177,1711553460109,-500.0,0.0005452,120]
[320776178,1711553460118,-500.0,0.0005452,120]
[320776179,1711553460127,-500.0,0.0005452,120]
[320776180,1711553460136,-500.0,0.0005452,120]
[320776181,1711553460146,-649.4,0.0005452,120]
[320776182,1711553460155,-1018.91,0.0005452,120]
[320776183,1711553460165,-500.0,0.0005452,120]
[320776184,1711553460175,-500.0,0.0005452,120]
[320776185,1711553460184,-562.77,0.0005452,120]
[320776186,1711553460194,-500.0,0.0005452,120]
[320776187,1711553460203,-575.15,0.0005452,120]
[320776188,1711553460212,-500.0,0.0005452,120]
[320776189,1711553460221,-500.0,0.0005452,120]
[320776190,1711553460231,-500.0,0.0005452,120]
[320776191,1711553460240,-500.0,0.0005452,120]
[320776192,1711553460249,-500.0,0.0005452,120]
[320776193,1711553460259,-500.0,0.0005452,120]
[320776194,1711553460268,-1651.75,0.0005452,120]
[320776195,1711553460277,-500.0,0.0005452,120]
[320776196,1711553460287,-500.0,0.0005452,120]
[320776197,1711553460297,-500.0,0.0005452,120]
[320776198,1711553460306,-674.47,0.0005452,120]
[320776199,1711553460315,-562.04,0.0005452,120]
[320776200,1711553460332,-506.91,0.0005452,120]
[320776201,1711553460344,-415.35,0.0005452,120]
[320776202,1711553460353,-716.75,0.0005452,120]
[320776203,1711553460363,-530.64,0.0005452,120]
[320776204,1711553460371,-887.0,0.0005452,120]
[320776205,1711553460380,-705.95,0.0005452,120]
[320776206,1711553460389,-500.0,0.0005452,120]
[320776207,1711553460398,-500.0,0.0005452,120]
[320776208,1711553460407,-500.0,0.0005452,120]
[320776209,1711553460416,-500.0,0.0005452,120]
[320776210,1711553460425,-500.0,0.0005452,120]
[320776211,1711553460435,-500.0,0.0005452,120]
[320776212,1711553460444,-521.0223163,0.0005452,120]
[320776213,1711553460453,-551.06,0.0005452,120]
[320776214,1711553460462,-500.0,0.0005452,120]
[320776215,1711553460472,-1177.51,0.0005452,120]
[320776216,1711553460482,-500.0,0.0005452,120]
[320776217,1711553460492,-500.0,0.0005452,120]
[320776218,1711553460500,-1566.83,0.0005452,120]
[320776219,1711553460510,-1093.81,0.0005452,120]
[320776220,1711553460519,-500.0,0.0005452,120]
[320776221,1711553460528,-1048.37,0.0005452,120]
[320776222,1711553460538,-500.0,0.0005452,120]
[320776223,1711553460547,-500.0,0.0005452,120]
[320776224,1711553460556,-500.0,0.0005452,120]
[320776225,1711553460566,-500.0,0.0005452,2]
[320776226,1711553460579,-500.0,0.0005452,120]
[320776227,1711553460588,-500.0,0.0005452,120]
[320776228,1711553460597,-500.0,0.0005452,120]
[320776229,1711553460606,-939.72,0.0005452,120]
[320776230,1711553460615,-500.0,0.0005452,120]
[320776231,1711553460624,-500.0,0.0005452,120]
[320776232,1711553460633,-500.0,0.0005452,120]
[320776233,1711553460642,-500.0,0.0005452,120]
[320776234,1711553460652,-500.0,0.0005452,120]
[320776235,1711553460661,-500.0,0.0005452,120]
[320776236,1711553460670,-1763.11,0.0005452,120]
[320776237,1711553460679,-500.0,0.0005452,120]
[320776238,1711553460688,-1714.3,0.0005452,120]
[320776239,1711553460697,-559.21,0.0005452,120]
[320776240,1711553460706,-500.0,0.0005452,120]
[320776241,1711553460715,-500.0,0.0005452,120]
[320776242,1711553460723,-500.0,0.0005452,120]
[320776243,1711553460733,-505.29395325,0.0005452,120]
[320776244,1711553460742,-500.0,0.0005452,120]
[320776245,1711553460751,-504.74,0.0005452,120]
[320776246,1711553460760,-591.74,0.0005452,120]
[320776247,1711553460769,-500.0,0.0005452,120]
[320776248,1711553460778,-500.0,0.0005452,120]
[320776249,1711553460787,-694.27,0.0005452,120]
[320776250,1711553460796,-500.0,0.0005452,120]
[320776251,1711553460806,-500.0,0.0005452,120]
[320776252,1711553460815,-1080.54,0.0005452,120]
[320776253,1711553460826,-592.86,0.0005452,120]
[320776254,1711553460836,-500.0,0.0005452,120]
[320776255,1711553460845,-500.0,0.0005452,120]
[320776256,1711553460854,-813.35,0.0005452,120]
[320776257,1711553460864,-500.0,0.0005452,120]
[320776258,1711553460874,-611.66,0.0005452,120]
[320776259,1711553460884,-1029.47,0.0005452,120]
[320776260,1711553460894,-500.0,0.0005452,120]
[320776261,1711553460904,-500.0,0.0005452,120]
[320776262,1711553460915,-1471.99,0.0005452,120]
[320776263,1711553460924,-500.0,0.0005452,120]
[320776264,1711553460933,-500.0,0.0005452,120]
[320776265,1711553460943,-500.0,0.0005452,120]
[320776266,1711553460952,-933.64,0.0005452,120]
[320776267,1711553460962,-500.0,0.0005452,120]
[320776268,1711553460972,-510.75772007,0.0005452,120]
[320776269,1711553460981,-500.0,0.0005452,120]
[320776270,1711553460991,-500.0,0.0005452,120]
[320776271,1711553461000,-670.02,0.0005452,120]
[320776272,1711553461011,-500.0,0.0005452,120]
[320776273,1711553461021,-3451.06,0.0005452,120]
[320776274,1711553461031,-500.0,0.0005452,120]
[320776275,1711553461042,-537.93,0.0005452,120]
[320776276,1711553461053,-500.0,0.0005452,120]
[320776277,1711553461063,-500.0,0.0005452,120]
[320776278,1711553461074,-280.0,0.0005452,60]
[320776279,1711553461084,-500.0,0.0005452,120]
[320776280,1711553461094,-500.0,0.0005452,120]
[320776281,1711553461103,-280.0,0.0005452,60]
[320776282,1711553461113,-500.0,0.0005452,120]
[320776283,1711553461122,-1455.25,0.0005452,120]
[320776284,1711553461131,-500.0,0.0005452,120]
[320776285,1711553461142,-876.62,0.0005452,30]
[320776286,1711553461151,-507.04044464,0.0005452,120]
[320776287,1711553461160,-500.0,0.0005452,120]
[320776288,1711553461170,-500.0,0.0005452,120]
[320776289,1711553461179,-500.0,0.0005452,120]
[320776290,1711553461189,-500.0,0.0005452,120]
[320776291,1711553461198,-500.0,0.0005452,120]
[320776292,1711553461208,-500.0,0.0005452,120]
[320776293,1711553461217,-1586.12,0.0005452,120]
[320776294,1711553461227,-413.16835978,0.0005452,120]
[320776295,1711553461237,-500.0,0.0005452,120]
[320776296,1711553461246,-500.0,0.0005452,120]
[320776297,1711553461255,-500.0,0.0005452,120]
[320776298,1711553461264,-1030.5,0.0005452,120]
[320776299,1711553461274,-504.43475837,0.0005452,120]
[320776300,1711553461283,-513.22,0.0005452,120]
[320776301,1711553461292,-500.0,0.0005452,120]
[320776302,1711553461301,-612.38,0.0005452,120]
[320776303,1711553461310,-500.0,0.0005452,120]
[320776304,1711553461321,-683.85,0.0005452,120]
[320776305,1711553461331,-1558.48,0.0005452,120]
[320776306,1711553461340,-500.0,0.0005452,120]
[320776307,1711553461349,-500.0,0.0005452,120]
[320776308,1711553461359,-500.0,0.0005452,120]
[320776309,1711553461368,-500.0,0.0005452,120]
[320776310,1711553461378,-602.12540429,0.0005452,120]
[320776311,1711553461387,-500.0,0.0005452,120]
[320776312,1711553461397,-500.0,0.0005452,120]
[320776313,1711553461406,-500.0,0.0005452,120]
[320776314,1711553461416,-500.0,0.0005452,120]
[320776315,1711553461425,-826.85,0.0005452,120]
[320776316,1711553461435,-500.0,0.0005452,120]
[320776317,1711553461447,-856.93,0.0005452,120]
[320776318,1711553461457,-500.0,0.0005452,120]
[320776319,1711553461468,-602.87,0.0005452,120]
[320776320,1711553461479,-500.0,0.0005452,120]
[320776321,1711553461488,-500.0,0.0005452,120]
[320776322,1711553461500,-644.28430615,0.0005452,120]
[320776323,1711553461509,-500.0,0.0005452,120]
[320776324,1711553461522,-500.0,0.0005452,120]
[320776325,1711553461532,-500.0,0.0005452,120]
[320776326,1711553461542,-823.8,0.0005452,120]
[320776327,1711553461551,-510.06635924,0.0005452,120]
[320776328,1711553461561,-500.0,0.0005452,120]
[320776329,1711553461573,-500.0,0.0005452,120]
[320776330,1711553461583,-852.96,0.0005452,120]
[320776331,1711553461593,-151.0,0.0005452,120]
[320776332,1711553461603,-500.0,0.0005452,120]
[320776333,1711553461612,-828.58,0.0005452,120]
[320776334,1711553461622,-500.0,0.0005452,120]
[320776335,1711553461631,-500.0,0.0005452,120]
[320776336,1711553461641,-500.0,0.0005452,120]
[320776337,1711553461651,-1646.63,0.0005452,120]
[320776338,1711553461661,-500.0,0.0005452,120]
[320776339,1711553461673,-500.0,0.0005452,120]
[320776340,1711553461683,-500.0,0.0005452,120]
[320776341,1711553461694,-500.0,0.0005452,120]
[320776342,1711553461703,-500.0,0.0005452,120]
[320776343,1711553461714,-500.0,0.0005452,120]
[320776344,1711553461725,-500.0,0.0005452,120]
[320776345,1711553461736,-500.0,0.0005452,120]
[320776346,1711553461747,-500.0,0.0005452,120]
[320776347,1711553461758,-500.0,0.0005452,120]
[320776348,1711553461769,-500.0,0.0005452,120]
[320776349,1711553461778,-500.0,0.0005452,120]
[320776350,1711553461788,-500.0,0.0005452,120]
[320776351,1711553461798,-500.0,0.0005452,120]
[320776352,1711553461807,-797.87,0.0005452,120]
[320776353,1711553461817,-668.8,0.0005452,120]
[320776354,1711553461833,-500.0,0.0005452,120]
[320776355,1711553461843,-500.0,0.0005452,120]
[320776356,1711553461854,-500.0,0.0005452,120]
[320776357,1711553461864,-500.0,0.0005452,120]
[320776358,1711553461875,-500.0,0.0005452,120]
[320776359,1711553461885,-500.0,0.0005452,120]
[320776360,1711553461895,-500.0,0.0005452,120]
[320776361,1711553461906,-151.0,0.0005452,120]
[320776362,1711553461915,-1081.33,0.0005452,120]
[320776363,1711553461925,-462.22031,0.0005452,120]
[320776364,1711553461935,-187.92,0.0005452,120]
[320776365,1711553461945,-350.65945565,0.0005452,120]
[320776366,1711553461955,-543.77,0.0005452,120]
[320776367,1711553461964,-462.22031,0.0005452,120]
[320776368,1711553461974,-500.0,0.0005452,120]
[320776369,1711553461984,-668.96,0.0005452,120]
[320776370,1711553461994,-861.28,0.0005452,120]
[320776371,1711553462004,-500.0,0.0005452,120]
[320776372,1711553462015,-500.0,0.0005452,120]
[320776373,1711553462024,-500.0,0.0005452,120]
[320776374,1711553462035,-500.0,0.0005452,120]
[320776375,1711553462044,-686.87,0.0005452,120]
[320776376,1711553462054,-151.0,0.0005452,120]
[320776377,1711553462064,-500.0,0.0005452,120]
[320776378,1711553462078,-1655.1,0.0005452,120]
[320776379,1711553462087,-151.0,0.0005452,120]
[320776380,1711553462097,-1331.8,0.0005452,120]
[320776381,1711553462107,-736.21,0.0005452,120]
[320776382,1711553462117,-500.0,0.0005452,120]
[320776383,1711553462127,-8854.03,0.0005452,120]
[320776384,1711553462137,-500.0,0.0005452,120]
[320776385,1711553462147,-625.06,0.0005452,120]
[320776386,1711553462156,-500.0,0.0005452,120]
[320776387,1711553462166,-500.0,0.0005452,120]
[320776388,1711553462175,-500.0,0.0005452,120]
[320776389,1711553462184,-569.7,0.0005452,120]
[320776390,1711553462194,-1026.49,0.0005452,120]
[320776391,1711553462203,-969.83,0.0005452,120]
[320776392,1711553462213,-500.0,0.0005452,120]
[320776393,1711553462222,-500.0,0.0005452,120]
[320776394,1711553462232,-500.0,0.0005452,120]
[320776395,1711553462241,-504.73022207,0.0005452,120]
[320776396,1711553462251,-1814.83,0.0005452,120]
[320776397,1711553462261,-500.0,0.0005452,120]
[320776398,1711553462270,-500.0,0.0005452,120]
[320776399,1711553462279,-191.038377,0.0005452,120]
[320776400,1711553462289,-913.83,0.0005452,120]
[320776401,1711553462298,-1786.6,0.0005452,120]
[320776402,1711553462308,-500.0,0.0005452,7]
[320776403,1711553462318,-191.038377,0.0005452,120]
[320776404,1711553462331,-500.0,0.0005452,120]
[320776405,1711553462340,-2102.27,0.0005452,120]
[320776406,1711553462350,-901.38,0.0005452,120]
[320776407,1711553462359,-607.18,0.0005452,120]
[320776408,1711553462369,-500.0,0.0005452,120]
[320776409,1711553462379,-151.0,0.0005452,120]
[320776410,1711553462388,-1186.25,0.0005452,120]
[320776411,1711553462398,-151.0,0.0005452,120]
[320776412,1711553462409,-1568.8,0.0005452,120]
[320776413,1711553462419,-608.6,0.0005452,120]
[320776414,1711553462428,-760.83,0.0005452,120]
[320776415,1711553462438,-151.0,0.0005452,120]
[320776416,1711553462448,-6991.21,0.0005452,120]
[320776417,1711553462458,-1537.94,0.0005452,120]
[320776418,1711553462469,-500.0,0.0005452,120]
[320776419,1711553462478,-900.9,0.0005452,120]
[320776420,1711553462488,-500.0,0.0005452,120]
[320776421,1711553462500,-500.0,0.0005452,120]
[320776422,1711553462511,-674.89,0.0005452,120]
[320776423,1711553462521,-4580.08,0.0005452,120]
[320776424,1711553462532,-7302.29,0.0005452,120]
[320776425,1711553462541,-588.79,0.0005452,120]
[320776426,1711553462551,-13451.5,0.0005452,120]
[320776427,1711553462561,-500.0,0.0005452,120]
[320776428,1711553462573,-500.0,0.0005452,120]
[320776429,1711553462583,-500.0,0.0005452,120]
[320776430,1711553462595,-500.0,0.0005452,120]
[320776431,1711553462605,-5189.29,0.0005452,120]
[320776432,1711553462615,-591.81,0.0005452,120]
[320776433,1711553462625,-500.0,0.0005452,120]
[320776434,1711553462635,-550.61,0.0005452,120]
[320776435,1711553462645,-151.0,0.0005452,120]
[320776436,1711553462655,-761.47,0.0005452,120]
[320776437,1711553462664,-595.42,0.0005452,120]
[320776438,1711553462675,-2785.35,0.0005452,120]
[320776439,1711553462684,-67609.91,0.0005452,120]
[320776440,1711553462694,-500.0,0.0005452,120]
[320776441,1711553462704,-500.0,0.0005452,120]
[320776442,1711553462714,-500.0,0.0005452,120]
[320776443,1711553462724,-671.65,0.0005452,120]
[320776444,1711553462733,-5671.67,0.0005452,120]
[320776445,1711553462744,-500.0,0.0005452,120]
[320776446,1711553462754,-151.0,0.0005452,120]
[320776447,1711553462763,-3381.36,0.0005452,120]
[320776448,1711553462773,-1358.4,0.0005452,120]
[320776449,1711553462784,-500.0,0.0005452,120]
[320776450,1711553462793,-249.28529323,0.0005452,120]
[320776451,1711553462803,-2092.96,0.0005452,120]
[320776452,1711553462814,-500.0,0.0005452,120]
[320776453,1711553462827,-1243.56,0.0005452,120]
[320776454,1711553462837,-6690.64,0.0005452,120]
[320776455,1711553462847,-500.0,0.0005452,120]
[320776456,1711553462858,-500.0,0.0005452,120]
[320776457,1711553462868,-500.0,0.0005452,120]
[320776458,1711553462878,-500.0,0.0005452,120]
[320776459,1711553462888,-151.0,0.0005452,120]
[320776460,1711553462898,-750.59,0.0005452,120]
[320776461,1711553462908,-500.0,0.0005452,120]